[Event "*** Titled Tuesday Blitz"]
[Site "Chess.com"]
[Date "2019.01.01"]
[Round "1"]
[White "IamSchrodingersCat"]
[Black "Alexander_Moskalenko"]
[Result "1/2-1/2"]
[WhiteElo "2447"]
[BlackElo "2831"]
[TimeControl "180+2"]
[EndTime "13:02:30 PST"]
[Termination "Game drawn by repetition"]

1. e4 {[%clk 0:03:01.9]} 1... c5 {[%clk 0:03:00.3]} 2. Nf3 {[%clk 0:03:02.3]}
2... d6 {[%clk 0:02:59.1]} 3. d4 {[%clk 0:03:03.3]} 3... cxd4 {[%clk 0:02:58.7]}
4. Nxd4 {[%clk 0:03:05.2]} 4... Nf6 {[%clk 0:03:00.2]} 5. Nc3 {[%clk 0:03:06.4]}
5... a6 {[%clk 0:03:00.1]} 6. Be2 {[%clk 0:03:07.7]} 6... e5 {[%clk 0:03:00.9]}
7. Nb3 {[%clk 0:03:09.1]} 7... Be7 {[%clk 0:03:02.4]} 8. g4 {[%clk 0:03:10.2]}
8... h6 {[%clk 0:02:53.1]} 9. Be3 {[%clk 0:03:11.2]} 9... Be6 {[%clk 0:02:52.4]}
10. Bf3 {[%clk 0:03:11.1]} 10... Nc6 {[%clk 0:02:52.7]} 11. Qe2 {[%clk
0:03:11.7]} 11... Nh7 {[%clk 0:02:28.8]} 12. O-O-O {[%clk 0:02:59.3]} 12... O-O
{[%clk 0:02:29.8]} 13. Kb1 {[%clk 0:02:43]} 13... Bg5 {[%clk 0:02:10]} 14. Bc5
{[%clk 0:02:39.1]} 14... Be7 {[%clk 0:02:09.9]} 15. Be3 {[%clk 0:02:39.2]} 15...
Bg5 {[%clk 0:02:08.4]} 16. Bc5 {[%clk 0:02:39.4]} 16... Be7 {[%clk 0:02:09.9]}
17. Be3 {[%clk 0:02:38]} 1/2-1/2

[Event "*** Titled Tuesday Blitz"]
[Site "Chess.com"]
[Date "2019.01.01"]
[Round "1"]
[White "Lion_DL"]
[Black "Rakhmanov_Aleksandr"]
[Result "0-1"]
[WhiteElo "2414"]
[BlackElo "2793"]
[TimeControl "180+2"]
[EndTime "13:03:28 PST"]
[Termination "Rakhmanov_Aleksandr won by resignation"]

1. e4 {[%clk 0:03:00.5]} 1... c5 {[%clk 0:02:48.4]} 2. Nf3 {[%clk 0:03:00.5]}
2... Nf6 {[%clk 0:02:49.7]} 3. Nc3 {[%clk 0:03:00.5]} 3... d5 {[%clk 0:02:50.1]}
4. exd5 {[%clk 0:02:58]} 4... Nxd5 {[%clk 0:02:52]} 5. Bc4 {[%clk 0:02:59]} 5...
Nb6 {[%clk 0:02:52.7]} 6. Bb5+ {[%clk 0:02:58.7]} 6... Bd7 {[%clk 0:02:54.2]} 7.
Qe2 {[%clk 0:02:59.3]} 7... e6 {[%clk 0:02:36.4]} 8. b3 {[%clk 0:02:53.6]} 8...
Nc6 {[%clk 0:02:35]} 9. Bb2 {[%clk 0:02:50.7]} 9... Nd4 {[%clk 0:02:35.6]} 10.
Nxd4 {[%clk 0:02:46.8]} 10... cxd4 {[%clk 0:02:37.5]} 11. Ne4 {[%clk 0:02:45]}
11... a6 {[%clk 0:02:31.8]} 12. Bd3 {[%clk 0:02:41.1]} 12... Bc6 {[%clk
0:02:24.8]} 13. O-O-O {[%clk 0:02:35]} 13... Nd5 {[%clk 0:02:22.3]} 14. g3
{[%clk 0:02:33.8]} 14... Nb4 {[%clk 0:02:22.4]} 15. f4 {[%clk 0:02:10.2]} 15...
Nxa2+ {[%clk 0:02:20.9]} 16. Kb1 {[%clk 0:02:10.7]} 16... Nb4 {[%clk 0:02:21.8]}
17. Rhf1 {[%clk 0:02:09.2]} 17... Qa5 {[%clk 0:02:20.6]} 18. Bxd4 {[%clk
0:01:54.2]} 18... Qa2+ {[%clk 0:02:21.1]} 19. Kc1 {[%clk 0:01:54.9]} 19... Nxd3+
{[%clk 0:02:21.9]} 20. Qxd3 {[%clk 0:01:50.4]} 20... Ba3+ {[%clk 0:02:23.8]} 0-1

[Event "*** Titled Tuesday Blitz"]
[Site "Chess.com"]
[Date "2019.01.01"]
[Round "1"]
[White "Chessmatus"]
[Black "enriquetejedor"]
[Result "0-1"]
[WhiteElo "2192"]
[BlackElo "2563"]
[TimeControl "180+2"]
[EndTime "13:03:28 PST"]
[Termination "enriquetejedor won by resignation"]

1. e4 {[%clk 0:03:01.5]} 1... c5 {[%clk 0:02:54.9]} 2. Nf3 {[%clk 0:03:02.3]}
2... e6 {[%clk 0:02:53.3]} 3. d4 {[%clk 0:03:02.9]} 3... cxd4 {[%clk 0:02:55.2]}
4. Nxd4 {[%clk 0:03:03.9]} 4... a6 {[%clk 0:02:56.3]} 5. Bd3 {[%clk 0:03:03.8]}
5... Nc6 {[%clk 0:02:56.2]} 6. Nxc6 {[%clk 0:03:02.9]} 6... bxc6 {[%clk
0:02:58.1]} 7. c4 {[%clk 0:03:04.1]} 7... Nf6 {[%clk 0:02:54]} 8. Nc3 {[%clk
0:03:00.3]} 8... d5 {[%clk 0:02:53.7]} 9. exd5 {[%clk 0:02:32.6]} 9... cxd5
{[%clk 0:02:53.5]} 10. O-O {[%clk 0:02:32.8]} 10... Be7 {[%clk 0:02:52.9]} 11.
Qa4+ {[%clk 0:02:23]} 11... Bd7 {[%clk 0:02:52.1]} 12. Qc2 {[%clk 0:02:23.9]}
12... dxc4 {[%clk 0:02:50.3]} 13. Bxc4 {[%clk 0:02:25.1]} 13... O-O {[%clk
0:02:50.9]} 14. Rd1 {[%clk 0:02:25.9]} 14... Qc7 {[%clk 0:02:50]} 15. Be2 {[%clk
0:02:23.9]} 15... Rfd8 {[%clk 0:02:48.3]} 16. Be3 {[%clk 0:02:22.9]} 16... Nd5
{[%clk 0:02:46.4]} 17. Bd4 {[%clk 0:02:17.2]} 17... Nf4 {[%clk 0:02:45]} 18. Bf1
{[%clk 0:02:18.2]} 18... Bc6 {[%clk 0:02:44.5]} 19. Ne4 {[%clk 0:02:08.4]} 19...
Qb7 {[%clk 0:02:41.3]} 20. Nc5 {[%clk 0:01:46.4]} 20... Bxc5 {[%clk 0:02:38.1]}
21. Bxc5 {[%clk 0:01:47.2]} 21... Bxg2 {[%clk 0:02:38]} 0-1

[Event "*** Titled Tuesday Blitz"]
[Site "Chess.com"]
[Date "2019.01.01"]
[Round "1"]
[White "Diwi89"]
[Black "Viaje"]
[Result "1-0"]
[WhiteElo "2753"]
[BlackElo "2382"]
[TimeControl "180+2"]
[EndTime "13:04:02 PST"]
[Termination "Diwi89 won by resignation"]

1. e4 {[%clk 0:03:00.1]} 1... c5 {[%clk 0:03:00.5]} 2. Nf3 {[%clk 0:03:00.6]}
2... d6 {[%clk 0:03:01.9]} 3. Bc4 {[%clk 0:02:59.8]} 3... Nf6 {[%clk 0:03:02]}
4. d3 {[%clk 0:02:58.3]} 4... e6 {[%clk 0:03:01.9]} 5. O-O {[%clk 0:02:58.2]}
5... a6 {[%clk 0:03:03.1]} 6. a4 {[%clk 0:02:57.8]} 6... Nc6 {[%clk 0:03:02.7]}
7. Re1 {[%clk 0:02:56.7]} 7... Be7 {[%clk 0:03:03.3]} 8. c3 {[%clk 0:02:57.3]}
8... O-O {[%clk 0:03:03.7]} 9. Bb3 {[%clk 0:02:57.2]} 9... d5 {[%clk 0:03:03.1]}
10. e5 {[%clk 0:02:57.6]} 10... Nd7 {[%clk 0:03:04.1]} 11. Bf4 {[%clk
0:02:58.4]} 11... Rb8 {[%clk 0:02:58.3]} 12. Nbd2 {[%clk 0:02:58.3]} 12... b5
{[%clk 0:02:58.8]} 13. axb5 {[%clk 0:02:58.8]} 13... axb5 {[%clk 0:03:00.7]} 14.
Nf1 {[%clk 0:02:57.2]} 14... b4 {[%clk 0:02:44.3]} 15. c4 {[%clk 0:02:58.2]}
15... d4 {[%clk 0:02:37.8]} 16. Ng3 {[%clk 0:02:59.2]} 16... Bb7 {[%clk
0:02:37.9]} 17. Ne4 {[%clk 0:02:58.7]} 17... Na5 {[%clk 0:02:15.2]} 18. Ba4
{[%clk 0:02:59.2]} 18... Bc6 {[%clk 0:02:11.7]} 19. Bxc6 {[%clk 0:02:59.6]}
19... Nxc6 {[%clk 0:02:13.6]} 20. Ra6 {[%clk 0:02:55.2]} 20... Qc7 {[%clk
0:02:11.5]} 21. Nd6 {[%clk 0:02:53.4]} 21... Bxd6 {[%clk 0:02:09.2]} 22. exd6
{[%clk 0:02:53.7]} 22... Qb7 {[%clk 0:02:10.5]} 23. Ra1 {[%clk 0:02:47]} 23...
Ra8 {[%clk 0:02:11.4]} 24. Qe2 {[%clk 0:02:47.4]} 24... Rxa1 {[%clk 0:02:04.5]}
25. Rxa1 {[%clk 0:02:48.4]} 25... Ra8 {[%clk 0:02:06]} 26. Re1 {[%clk
0:02:49.9]} 26... Ra2 {[%clk 0:02:02.4]} 27. Ng5 {[%clk 0:02:50.4]} 27... Nf8
{[%clk 0:01:57.6]} 28. Ne4 {[%clk 0:02:45.2]} 28... Qa7 {[%clk 0:01:55.3]} 29.
Bc1 {[%clk 0:02:43.7]} 29... Nd7 {[%clk 0:01:50]} 30. Qh5 {[%clk 0:02:41.3]}
30... f6 {[%clk 0:01:41.5]} 31. Qe8+ {[%clk 0:02:40.9]} 31... Nf8 {[%clk
0:01:42]} 32. Qxc6 {[%clk 0:02:42.1]} 1-0

[Event "*** Titled Tuesday Blitz"]
[Site "Chess.com"]
[Date "2019.01.01"]
[Round "1"]
[White "GeorgMeier"]
[Black "ajkom197"]
[Result "1-0"]
[WhiteElo "2823"]
[BlackElo "2430"]
[TimeControl "180+2"]
[EndTime "13:04:09 PST"]
[Termination "GeorgMeier won by resignation"]

1. d4 {[%clk 0:03:01.9]} 1... d5 {[%clk 0:03:00.2]} 2. c4 {[%clk 0:03:02.1]}
2... c6 {[%clk 0:03:00.8]} 3. Nf3 {[%clk 0:03:02.3]} 3... Nf6 {[%clk 0:03:01.8]}
4. e3 {[%clk 0:03:03.5]} 4... Bg4 {[%clk 0:03:01.8]} 5. h3 {[%clk 0:03:03.7]}
5... Bh5 {[%clk 0:03:01]} 6. Nc3 {[%clk 0:03:04.7]} 6... e6 {[%clk 0:03:01.7]}
7. g4 {[%clk 0:03:05.8]} 7... Bg6 {[%clk 0:03:02.4]} 8. Ne5 {[%clk 0:03:07.5]}
8... Nbd7 {[%clk 0:03:02.9]} 9. Nxg6 {[%clk 0:03:08.9]} 9... hxg6 {[%clk
0:03:03.9]} 10. Bd2 {[%clk 0:03:09.6]} 10... Bd6 {[%clk 0:03:02]} 11. g5 {[%clk
0:03:04.1]} 11... Ng8 {[%clk 0:03:00.9]} 12. Qg4 {[%clk 0:03:04.2]} 12... Ne7
{[%clk 0:02:59.6]} 13. O-O-O {[%clk 0:03:03.2]} 13... Nf5 {[%clk 0:02:54.7]} 14.
h4 {[%clk 0:03:04.5]} 14... Qa5 {[%clk 0:02:47.7]} 15. Kb1 {[%clk 0:02:58.7]}
15... dxc4 {[%clk 0:02:27.8]} 16. Bxc4 {[%clk 0:02:56.9]} 16... b5 {[%clk
0:02:27.1]} 17. Bd3 {[%clk 0:02:41.8]} 17... Qb6 {[%clk 0:02:12.7]} 18. h5
{[%clk 0:02:42.4]} 18... O-O-O {[%clk 0:02:11.4]} 19. hxg6 {[%clk 0:02:40.5]}
19... fxg6 {[%clk 0:02:12.2]} 20. Ne2 {[%clk 0:02:38.2]} 20... e5 {[%clk
0:02:08.6]} 21. Rxh8 {[%clk 0:02:24.5]} 21... Rxh8 {[%clk 0:02:08.6]} 22. Rc1
{[%clk 0:02:26]} 22... Kb7 {[%clk 0:02:06]} 23. Be4 {[%clk 0:02:21]} 23... Rc8
{[%clk 0:02:02.8]} 24. Bxf5 {[%clk 0:02:17.2]} 24... gxf5 {[%clk 0:02:03.6]} 25.
Qxf5 {[%clk 0:02:19.1]} 25... Rc7 {[%clk 0:02:04.7]} 26. Qe6 {[%clk 0:02:15.6]}
1-0

[Event "*** Titled Tuesday Blitz"]
[Site "Chess.com"]
[Date "2019.01.01"]
[Round "1"]
[White "Orest_Vovk"]
[Black "kleinebeer98"]
[Result "0-1"]
[WhiteElo "2359"]
[BlackElo "2708"]
[TimeControl "180+2"]
[EndTime "13:04:31 PST"]
[Termination "kleinebeer98 won by resignation"]

1. g4 {[%clk 0:03:01.3]} 1... d5 {[%clk 0:02:51.7]} 2. h3 {[%clk 0:03:01.8]}
2... h5 {[%clk 0:02:49.7]} 3. g5 {[%clk 0:03:02.2]} 3... e5 {[%clk 0:02:48.4]}
4. d4 {[%clk 0:03:03.2]} 4... exd4 {[%clk 0:02:47.5]} 5. Qxd4 {[%clk 0:03:03]}
5... Nc6 {[%clk 0:02:48]} 6. Qa4 {[%clk 0:03:02.7]} 6... Bb4+ {[%clk 0:02:44.9]}
7. c3 {[%clk 0:03:00.6]} 7... Bc5 {[%clk 0:02:43.9]} 8. Bg2 {[%clk 0:02:59.4]}
8... Ne7 {[%clk 0:02:38.5]} 9. Nf3 {[%clk 0:02:55.2]} 9... Ng6 {[%clk
0:02:33.8]} 10. Nh4 {[%clk 0:02:47.7]} 10... O-O {[%clk 0:02:32.8]} 11. Bf3
{[%clk 0:02:15.8]} 11... Nce5 {[%clk 0:01:31.2]} 12. Bxh5 {[%clk 0:02:12]} 12...
Bd7 {[%clk 0:01:30.7]} 13. Nxg6 {[%clk 0:01:52.3]} 13... fxg6 {[%clk 0:01:22]}
14. Qh4 {[%clk 0:01:50.2]} 14... Bxf2+ {[%clk 0:01:20.6]} 15. Qxf2 {[%clk
0:01:48]} 15... Rxf2 {[%clk 0:01:22.5]} 16. Kxf2 {[%clk 0:01:48.7]} 16... gxh5
{[%clk 0:01:24]} 17. Bf4 {[%clk 0:01:48]} 17... Qf8 {[%clk 0:01:24.3]} 18. e3
{[%clk 0:01:43.9]} 18... Ng6 {[%clk 0:01:25.3]} 19. Kf3 {[%clk 0:01:43.2]} 19...
Qf5 {[%clk 0:01:22]} 20. Nd2 {[%clk 0:01:43.1]} 20... Rf8 {[%clk 0:01:23.4]} 0-1

[Event "*** Titled Tuesday Blitz"]
[Site "Chess.com"]
[Date "2019.01.01"]
[Round "1"]
[White "Arjun2002"]
[Black "VitaliyBernadskiy"]
[Result "0-1"]
[WhiteElo "2382"]
[BlackElo "2739"]
[TimeControl "180+2"]
[EndTime "13:04:44 PST"]
[Termination "VitaliyBernadskiy won by resignation"]

1. e4 {[%clk 0:03:01.9]} 1... c6 {[%clk 0:03:00.5]} 2. d4 {[%clk 0:03:02.1]}
2... d5 {[%clk 0:03:01.9]} 3. Nd2 {[%clk 0:03:03.1]} 3... dxe4 {[%clk
0:03:00.7]} 4. Nxe4 {[%clk 0:03:05]} 4... Nf6 {[%clk 0:03:02.1]} 5. Nxf6+ {[%clk
0:03:05.4]} 5... exf6 {[%clk 0:03:04]} 6. c3 {[%clk 0:03:06.5]} 6... Bd6 {[%clk
0:03:03.6]} 7. Bd3 {[%clk 0:03:06.7]} 7... O-O {[%clk 0:03:04.8]} 8. Ne2 {[%clk
0:03:07.4]} 8... Re8 {[%clk 0:03:05.7]} 9. O-O {[%clk 0:03:08.3]} 9... Qc7
{[%clk 0:03:06.7]} 10. Ng3 {[%clk 0:03:03.4]} 10... Nd7 {[%clk 0:03:03.3]} 11.
Qc2 {[%clk 0:02:55.5]} 11... Nf8 {[%clk 0:03:02]} 12. Bd2 {[%clk 0:02:54.3]}
12... Ng6 {[%clk 0:02:59.8]} 13. Rae1 {[%clk 0:02:45.6]} 13... Bd7 {[%clk
0:02:59.4]} 14. Rxe8+ {[%clk 0:02:33.5]} 14... Rxe8 {[%clk 0:03:01.3]} 15. Re1
{[%clk 0:02:33.7]} 15... Rxe1+ {[%clk 0:03:02]} 16. Bxe1 {[%clk 0:02:35.6]}
16... c5 {[%clk 0:02:58.1]} 17. dxc5 {[%clk 0:02:34.4]} 17... Bxc5 {[%clk
0:02:56.5]} 18. Ne4 {[%clk 0:02:31.2]} 18... Bf8 {[%clk 0:02:51.4]} 19. c4
{[%clk 0:02:05.4]} 19... Nf4 {[%clk 0:02:45.8]} 20. Bf1 {[%clk 0:02:04.7]} 20...
Bc6 {[%clk 0:02:45.2]} 21. Bd2 {[%clk 0:02:02.2]} 21... Ne6 {[%clk 0:02:43.3]}
22. Nc3 {[%clk 0:01:58.5]} 22... Qe5 {[%clk 0:02:39.8]} 23. Be3 {[%clk
0:01:54.1]} 23... f5 {[%clk 0:02:23.2]} 24. Bxa7 {[%clk 0:01:44.1]} 24... Bd6
{[%clk 0:02:23.5]} 25. g3 {[%clk 0:01:30.7]} 25... Ng5 {[%clk 0:02:18.4]} 26.
Bg2 {[%clk 0:01:21.2]} 26... Qe1+ {[%clk 0:02:16.9]} 0-1

[Event "*** Titled Tuesday Blitz"]
[Site "Chess.com"]
[Date "2019.01.01"]
[Round "1"]
[White "tgpgoat"]
[Black "tango_argentino"]
[Result "0-1"]
[WhiteElo "1984"]
[BlackElo "2497"]
[TimeControl "180+2"]
[EndTime "13:04:57 PST"]
[Termination "tango_argentino won by resignation"]

1. d4 {[%clk 0:02:56.3]} 1... Nf6 {[%clk 0:02:59.3]} 2. Nf3 {[%clk 0:02:54.9]}
2... g6 {[%clk 0:02:57.6]} 3. c4 {[%clk 0:02:55.2]} 3... Bg7 {[%clk 0:02:58.8]}
4. Nc3 {[%clk 0:02:56.1]} 4... O-O {[%clk 0:02:57.9]} 5. e4 {[%clk 0:02:57]}
5... d6 {[%clk 0:02:58.6]} 6. Be2 {[%clk 0:02:58]} 6... Na6 {[%clk 0:02:59.7]}
7. a3 {[%clk 0:02:55.4]} 7... e5 {[%clk 0:02:54.1]} 8. dxe5 {[%clk 0:02:49.3]}
8... dxe5 {[%clk 0:02:56]} 9. Qxd8 {[%clk 0:02:49.8]} 9... Rxd8 {[%clk
0:02:57.9]} 10. Bg5 {[%clk 0:02:50.7]} 10... h6 {[%clk 0:02:55.8]} 11. Bh4
{[%clk 0:02:50.8]} 11... c6 {[%clk 0:02:55.5]} 12. Nxe5 {[%clk 0:02:44.3]} 12...
Re8 {[%clk 0:02:51.5]} 13. f4 {[%clk 0:02:18.4]} 13... Nc5 {[%clk 0:02:47.2]}
14. Bf3 {[%clk 0:02:11.3]} 14... g5 {[%clk 0:02:44.8]} 15. fxg5 {[%clk
0:01:33.8]} 15... Nfxe4 {[%clk 0:02:39.3]} 16. Nxe4 {[%clk 0:00:56.3]} 16...
Rxe5 {[%clk 0:02:36.3]} 17. gxh6 {[%clk 0:00:50.1]} 17... Bxh6 {[%clk
0:02:34.1]} 18. Bg3 {[%clk 0:00:17.1]} 18... Re8 {[%clk 0:02:29.3]} 19. O-O
{[%clk 0:00:13.2]} 19... Nxe4 {[%clk 0:02:27.6]} 20. Rfe1 {[%clk 0:00:14.5]}
20... Bf5 {[%clk 0:02:24.8]} 0-1

[Event "*** Titled Tuesday Blitz"]
[Site "Chess.com"]
[Date "2019.01.01"]
[Round "1"]
[White "lucasmito"]
[Black "Zhuu96"]
[Result "0-1"]
[WhiteElo "2450"]
[BlackElo "2870"]
[TimeControl "180+2"]
[EndTime "13:05:04 PST"]
[Termination "Zhuu96 won by resignation"]

1. e4 {[%clk 0:02:54.6]} 1... c5 {[%clk 0:03:00.4]} 2. Nf3 {[%clk 0:02:53.5]}
2... d6 {[%clk 0:03:01.6]} 3. d4 {[%clk 0:02:54.1]} 3... cxd4 {[%clk 0:03:02.8]}
4. Nxd4 {[%clk 0:02:50.3]} 4... Nf6 {[%clk 0:03:04]} 5. Nc3 {[%clk 0:02:50.2]}
5... a6 {[%clk 0:03:04.5]} 6. Be3 {[%clk 0:02:50.8]} 6... e6 {[%clk 0:03:05.1]}
7. f3 {[%clk 0:02:51.5]} 7... b5 {[%clk 0:03:05.9]} 8. Qd2 {[%clk 0:02:51.2]}
8... Nbd7 {[%clk 0:03:06.3]} 9. O-O-O {[%clk 0:02:50.8]} 9... b4 {[%clk
0:03:02.3]} 10. Na4 {[%clk 0:02:48.1]} 10... Ne5 {[%clk 0:03:02.8]} 11. Qxb4
{[%clk 0:02:43.7]} 11... Bd7 {[%clk 0:03:03.2]} 12. Nb6 {[%clk 0:02:09.8]} 12...
a5 {[%clk 0:02:59.1]} 13. Qb3 {[%clk 0:02:02.3]} 13... Rb8 {[%clk 0:02:59.2]}
14. Ne2 {[%clk 0:01:59.1]} 14... a4 {[%clk 0:02:52.2]} 15. Qb4 {[%clk
0:01:57.4]} 15... a3 {[%clk 0:02:53.1]} 16. Qxa3 {[%clk 0:01:57.6]} 16... Rxb6
{[%clk 0:02:53]} 17. Bxb6 {[%clk 0:01:58.7]} 17... Qxb6 {[%clk 0:02:54.2]} 18.
Kb1 {[%clk 0:02:00]} 18... Nc4 {[%clk 0:02:48.3]} 19. Qc3 {[%clk 0:01:56.4]}
19... d5 {[%clk 0:02:48]} 20. Nd4 {[%clk 0:01:52.6]} 20... e5 {[%clk 0:02:38.2]}
21. Nf5 {[%clk 0:01:32.3]} 21... Bb4 {[%clk 0:02:33.9]} 22. Qb3 {[%clk
0:01:32.8]} 22... Na5 {[%clk 0:02:29.8]} 23. Qe3 {[%clk 0:01:26.4]} 23... Bc5
{[%clk 0:02:21.6]} 24. Qg5 {[%clk 0:01:26.3]} 24... Bxf5 {[%clk 0:02:19.8]} 25.
Qxf5 {[%clk 0:01:17.9]} 25... O-O {[%clk 0:02:20.2]} 26. Qxe5 {[%clk 0:01:13.6]}
26... dxe4 {[%clk 0:02:21.4]} 27. fxe4 {[%clk 0:01:01.6]} 27... Ng4 {[%clk
0:02:20.9]} 28. Qd5 {[%clk 0:00:53]} 28... Ne3 {[%clk 0:02:20.8]} 29. Bc4 {[%clk
0:00:53.9]} 29... Nxd5 {[%clk 0:02:21.4]} 0-1

[Event "*** Titled Tuesday Blitz"]
[Site "Chess.com"]
[Date "2019.01.01"]
[Round "1"]
[White "pastouche06"]
[Black "kuli4ik"]
[Result "0-1"]
[WhiteElo "2425"]
[BlackElo "2812"]
[TimeControl "180+2"]
[EndTime "13:05:14 PST"]
[Termination "kuli4ik won by resignation"]

1. d4 {[%clk 0:03:00.6]} 1... d5 {[%clk 0:02:56.9]} 2. c4 {[%clk 0:03:01.1]}
2... c6 {[%clk 0:02:58.3]} 3. Nf3 {[%clk 0:03:01.6]} 3... Nf6 {[%clk 0:02:59.3]}
4. e3 {[%clk 0:03:02.9]} 4... Bf5 {[%clk 0:02:59.8]} 5. Nc3 {[%clk 0:03:03.8]}
5... e6 {[%clk 0:03:01.3]} 6. Nh4 {[%clk 0:03:03.7]} 6... Be4 {[%clk 0:03:02.8]}
7. f3 {[%clk 0:03:04.6]} 7... Bg6 {[%clk 0:03:04.3]} 8. Qb3 {[%clk 0:03:05.6]}
8... Qc7 {[%clk 0:03:05.2]} 9. Bd2 {[%clk 0:03:06.5]} 9... a6 {[%clk 0:03:05.9]}
10. Rc1 {[%clk 0:03:06.1]} 10... dxc4 {[%clk 0:03:05.7]} 11. Bxc4 {[%clk
0:03:08]} 11... Nbd7 {[%clk 0:03:06.9]} 12. O-O {[%clk 0:02:58.4]} 12... Bd6
{[%clk 0:03:07]} 13. g3 {[%clk 0:02:50.7]} 13... O-O {[%clk 0:03:03.6]} 14. Nxg6
{[%clk 0:02:47.6]} 14... hxg6 {[%clk 0:03:05.5]} 15. Ne2 {[%clk 0:02:47.3]}
15... b5 {[%clk 0:02:57.1]} 16. Bd3 {[%clk 0:02:47.1]} 16... c5 {[%clk
0:02:58.5]} 17. Bb1 {[%clk 0:02:33.6]} 17... Qa7 {[%clk 0:02:55.9]} 18. Kg2
{[%clk 0:02:23.9]} 18... Rac8 {[%clk 0:02:54.7]} 19. Qd1 {[%clk 0:02:14]} 19...
Rfd8 {[%clk 0:02:49.4]} 20. Ba5 {[%clk 0:02:14.3]} 20... Bc7 {[%clk 0:02:50.5]}
21. Bxc7 {[%clk 0:02:14.2]} 21... Qxc7 {[%clk 0:02:46.8]} 22. Qe1 {[%clk
0:02:04.6]} 22... Qb6 {[%clk 0:02:43.1]} 23. Qf2 {[%clk 0:02:04]} 23... c4
{[%clk 0:02:29.5]} 24. e4 {[%clk 0:02:02.7]} 24... e5 {[%clk 0:02:18.5]} 25.
Rfd1 {[%clk 0:01:54.7]} 25... exd4 {[%clk 0:02:19]} 26. Rxd4 {[%clk 0:01:54.6]}
26... Nf8 {[%clk 0:02:13.8]} 27. Rcd1 {[%clk 0:01:55]} 27... Rxd4 {[%clk
0:02:11.7]} 28. Qxd4 {[%clk 0:01:52.7]} 28... Qc7 {[%clk 0:02:07.5]} 29. Nc3
{[%clk 0:01:42]} 29... b4 {[%clk 0:02:02.8]} 30. Nd5 {[%clk 0:01:29.2]} 30...
Nxd5 {[%clk 0:02:03]} 31. Qxd5 {[%clk 0:01:28.7]} 31... Ne6 {[%clk 0:01:59.9]}
32. f4 {[%clk 0:01:28.9]} 32... Rd8 {[%clk 0:01:59.9]} 0-1

[Event "*** Titled Tuesday Blitz"]
[Site "Chess.com"]
[Date "2019.01.01"]
[Round "1"]
[White "nochewycandy"]
[Black "attack2mateU"]
[Result "1/2-1/2"]
[WhiteElo "2279"]
[BlackElo "2607"]
[TimeControl "180+2"]
[EndTime "13:05:17 PST"]
[Termination "Game drawn by repetition"]

1. c4 {[%clk 0:02:57.3]} 1... e5 {[%clk 0:03:00.7]} 2. g3 {[%clk 0:02:58.4]}
2... Nf6 {[%clk 0:03:01.9]} 3. Bg2 {[%clk 0:02:59.6]} 3... d5 {[%clk 0:03:03.5]}
4. cxd5 {[%clk 0:03:00.5]} 4... Nxd5 {[%clk 0:03:05.4]} 5. Nf3 {[%clk
0:02:59.8]} 5... Nc6 {[%clk 0:03:06]} 6. O-O {[%clk 0:03:00.5]} 6... Be7 {[%clk
0:03:05]} 7. d4 {[%clk 0:02:59.3]} 7... e4 {[%clk 0:03:02.3]} 8. Ne5 {[%clk
0:02:59.4]} 8... f5 {[%clk 0:02:46.2]} 9. Nxc6 {[%clk 0:02:58.4]} 9... bxc6
{[%clk 0:02:48.1]} 10. Nc3 {[%clk 0:02:58]} 10... Nxc3 {[%clk 0:02:42.3]} 11.
bxc3 {[%clk 0:02:58.8]} 11... Be6 {[%clk 0:02:43.9]} 12. f3 {[%clk 0:02:54.9]}
12... exf3 {[%clk 0:02:38.5]} 13. Bxf3 {[%clk 0:02:56]} 13... Bd5 {[%clk
0:02:38.3]} 14. Qd3 {[%clk 0:02:51.7]} 14... O-O {[%clk 0:02:35.5]} 15. Bd2
{[%clk 0:02:38.1]} 15... Qd7 {[%clk 0:02:27.2]} 16. e4 {[%clk 0:02:28.7]} 16...
fxe4 {[%clk 0:02:26.4]} 17. Bxe4 {[%clk 0:02:30.6]} 17... Bxe4 {[%clk
0:02:16.5]} 18. Qxe4 {[%clk 0:02:29.9]} 18... Bf6 {[%clk 0:02:17.7]} 19. Bf4
{[%clk 0:02:20.5]} 19... Rfe8 {[%clk 0:02:17.6]} 20. Qc2 {[%clk 0:02:17.5]}
20... Rab8 {[%clk 0:02:06.1]} 21. Rae1 {[%clk 0:02:14.3]} 21... Qf7 {[%clk
0:01:48.2]} 22. Rxe8+ {[%clk 0:01:44.4]} 22... Rxe8 {[%clk 0:01:47.8]} 23. Qb3
{[%clk 0:01:45.2]} 23... Qxb3 {[%clk 0:01:37.4]} 24. axb3 {[%clk 0:01:47.1]}
24... Re2 {[%clk 0:01:22.8]} 25. Rf2 {[%clk 0:01:35.9]} 25... Re1+ {[%clk
0:01:24]} 26. Rf1 {[%clk 0:01:32.6]} 26... Re2 {[%clk 0:01:25]} 27. Rf2 {[%clk
0:01:33.9]} 27... Re1+ {[%clk 0:01:24.2]} 28. Rf1 {[%clk 0:01:23.7]} 28... Re2
{[%clk 0:01:24.4]} 29. Rf2 {[%clk 0:01:25.1]} 1/2-1/2

[Event "*** Titled Tuesday Blitz"]
[Site "Chess.com"]
[Date "2019.01.01"]
[Round "1"]
[White "Caterpiller35"]
[Black "joppie2"]
[Result "1/2-1/2"]
[WhiteElo "2408"]
[BlackElo "2751"]
[TimeControl "180+2"]
[EndTime "13:05:34 PST"]
[Termination "Game drawn by agreement"]

1. d4 {[%clk 0:03:01.8]} 1... e6 {[%clk 0:02:46]} 2. Bf4 {[%clk 0:03:00.7]} 2...
Nf6 {[%clk 0:02:44.4]} 3. e3 {[%clk 0:03:01.3]} 3... d5 {[%clk 0:02:44.4]} 4.
Nd2 {[%clk 0:03:00.9]} 4... c5 {[%clk 0:02:43.7]} 5. c3 {[%clk 0:03:01.9]} 5...
Bd6 {[%clk 0:02:38.3]} 6. Bg3 {[%clk 0:03:00.8]} 6... O-O {[%clk 0:02:39.1]} 7.
Ngf3 {[%clk 0:03:00.7]} 7... b6 {[%clk 0:02:40]} 8. Bd3 {[%clk 0:02:59.4]} 8...
Ba6 {[%clk 0:02:40.4]} 9. Bc2 {[%clk 0:02:59.6]} 9... Nc6 {[%clk 0:02:37.9]} 10.
Ne5 {[%clk 0:02:58]} 10... Qc7 {[%clk 0:02:37]} 11. f4 {[%clk 0:02:57.9]} 11...
Rac8 {[%clk 0:02:37.6]} 12. Bh4 {[%clk 0:02:27.1]} 12... cxd4 {[%clk 0:02:35]}
13. Bxf6 {[%clk 0:02:21.3]} 13... gxf6 {[%clk 0:01:50.7]} 14. Bxh7+ {[%clk
0:01:38.7]} 14... Kg7 {[%clk 0:01:33.3]} 15. Qg4+ {[%clk 0:01:29.5]} 15... Kxh7
{[%clk 0:01:17]} 16. Qh5+ {[%clk 0:01:26.9]} 16... Kg7 {[%clk 0:01:18.1]} 17.
Qg4+ {[%clk 0:01:21.3]} 17... Kh7 {[%clk 0:01:14.6]} 18. Qh5+ {[%clk 0:01:22.1]}
18... Kg8 {[%clk 0:01:04.2]} 19. Qg4+ {[%clk 0:01:10.2]} 19... Kh8 {[%clk
0:01:04.5]} 20. Qh5+ {[%clk 0:01:09.4]} 1/2-1/2